[Event "EYCC O18-ch 2024"]
[Site "Prague"]
[Date "2024.08.25"]
[Round "4.10"]
[White "Maldonado Mena, German"]
[Black "Vergara Anton, Diego"]
[Result "1/2-1/2"]
[ECO "D37"]
[WhiteElo "2073"]
[BlackElo "2416"]
[Annotator "ChessBase"]
[PlyCount "83"]
[EventDate "2024.08.19"]
[EventType "swiss"]
[EventCountry "CZE"]
[SourceTitle "playchess.com"]
[Source "ChessBase"]
[SourceQuality "1"]
[TimeControl "5400+30"]

1. d4 {[%emt 0:00:03]} d5 {[%emt 0:00:10]} 2. c4 {[%emt 0:00:06]} e6 {[%emt 0:00:05]} 3. Nf3 {[%emt 0:00:04]} Nf6 {[%emt 0:00:12]} 4. Nc3 {[%emt 0:00:18]} Nbd7 {[%emt 0:01:43]} 5. Bf4 {[%emt 0:01:16]} dxc4 {[%emt 0:01:09]} 6. e3 {[%emt 0:17:40]} Nb6 {[%emt 0:03:20]} 7. Bxc4 {[%emt 0:00:28]} Nxc4 {[%emt 0:00:49]} 8. Qa4+ {[%emt 0:00:07]} Bd7 {[%emt 0:01:43]} 9. Qxc4 {[%emt 0:01:53]} Bc6 {[%emt 0:00:38]} 10. O-O {[%emt 0:03:29]} Bxf3 {[%emt 0:01:45]} 11. gxf3 {[%emt 0:01:35]} c6 {[%emt 0:00:37]} 12. Kh1 {[%emt 0:25:39]} Be7 {[%emt 0:05:54]} 13. Rg1 {[%emt 0:00:37]} Nd5 {[%emt 0:08:05]} 14. Nxd5 {[%emt 0:00:59]} exd5 {[%emt 0:00:07]} 15. Qb3 {[%emt 0:00:44]} O-O {[%emt 0:10:34]} 16. Qxb7 {[%emt 0:02:10]} Bd6 {[%emt 0:02:21]} 17. Bg5 {[%emt 0:00:13]} Qc8 {[%emt 0:02:17]} 18. Bf6 {[%emt 0:02:36]} g6 {[%emt 0:00:07]} 19. Qxc8 {[%emt 0:00:16]} Rfxc8 {[%emt 0:00:15]} 20. Rgc1 {[%emt 0:01:21]} Kf8 {[%emt 0:00:29]} 21. Rc2 {[%emt 0:14:51]} Ke8 {[%emt 0:00:11]} 22. Rac1 {[%emt 0:04:57]} Kd7 {[%emt 0:00:04]} 23. f4 {[%emt 0:00:06]} a5 {[%emt 0:02:44]} 24. Kg2 {[%emt 0:01:05]} Ra6 {[%emt 0:01:11]} 25. Kf3 {[%emt 0:05:59]} Rb6 {[%emt 0:03:14]} 26. Be5 {[%emt 0:03:40]} Be7 {[%emt 0:04:39]} 27. f5 {[%emt 0:00:05]} gxf5 {[%emt 0:00:43]} 28. Rg1 {[%emt 0:00:04]} Ke6 {[%emt 0:02:32]} 29. Rg7 {[%emt 0:01:35]} c5 {[%emt 0:02:07]} 30. Rxh7 {[%emt 0:01:05]} Rbc6 {[%emt 0:00:44]} 31. Rh6+ {[%emt 0:07:05]} f6 {[%emt 0:00:04]} 32. Ke2 {[%emt 0:00:42]} Kd7 {[%emt 0:02:29]} 33. Bf4 {[%emt 0:00:02]} cxd4 {[%emt 0:00:40]} 34. Rxc6 {[%emt 0:00:04]} Rxc6 {[%emt 0:00:04]} 35. Kd3 {[%emt 0:00:16]} dxe3 {[%emt 0:01:10]} 36. Bxe3 {[%emt 0:00:05]} Ke6 {[%emt 0:01:33]} 37. Rh8 {[%emt 0:00:56]} Rc4 {[%emt 0:05:02]} 38. Ra8 {[%emt 0:01:09]} Ra4 {[%emt 0:03:27]} 39. Ra6+ {[%emt 0:00:31]} Kd7 {[%emt 0:00:46]} 40. Ra7+ {[%emt 0:00:23]} Ke6 {[%emt 0:00:32]} 41. Ra6+ {[%emt 0:00:06]} Kd7 {[%emt 0:01:35]} 42. Ra7+ {[%emt 0:00:06]} 1/2-1/2

[Event "EYCC O18-ch 2024"]
[Site "Prague"]
[Date "2024.08.25"]
[Round "4.11"]
[White "Davtyan, Arsen"]
[Black "Trushko, Andrii"]
[Result "1-0"]
[ECO "D52"]
[WhiteElo "2402"]
[BlackElo "2154"]
[Annotator "ChessBase"]
[PlyCount "93"]
[EventDate "2024.08.19"]
[EventType "swiss"]
[EventCountry "CZE"]
[SourceTitle "playchess.com"]
[Source "ChessBase"]
[SourceQuality "1"]
[TimeControl "5400+30"]

1. d4 {[%emt 0:00:03]} d5 {[%emt 0:00:06]} 2. c4 {[%emt 0:00:04]} c6 {[%emt 0:00:03]} 3. Nf3 {[%emt 0:00:06]} Nf6 {[%emt 0:00:05]} 4. Nc3 {[%emt 0:00:05]} e6 {[%emt 0:00:08]} 5. Bg5 {[%emt 0:00:17]} Nbd7 {[%emt 0:00:29]} 6. e3 {[%emt 0:01:26]} h6 {[%emt 0:01:25]} 7. Bf4 {[%emt 0:00:23]} Be7 {[%emt 0:04:56]} 8. Qc2 {[%emt 0:00:12]} O-O {[%emt 0:02:24]} 9. g4 {[%emt 0:00:12]} Nxg4 {[%emt 0:01:09]} 10. Rg1 {[%emt 0:00:17]} f5 {[%emt 0:04:17]} 11. h3 {[%emt 0:00:37]} Ngf6 {[%emt 0:00:01]} 12. Bxh6 {[%emt 0:00:46]} Nh5 {[%emt 0:00:42]} 13. O-O-O {[%emt 0:02:05]} Kh8 {[%emt 0:01:20]} 14. Bg5 {[%emt 0:01:40]} Nhf6 {[%emt 0:01:17]} 15. Nh4 {[%emt 0:03:57]} Kg8 {[%emt 0:02:32]} 16. f3 {[%emt 0:06:41]} Rf7 {[%emt 0:01:26]} 17. Ng6 {[%emt 0:02:39]} Qe8 {[%emt 0:05:19]} 18. e4 {[%emt 0:04:16]} Bd8 {[%emt 0:02:07]} 19. exf5 {[%emt 0:04:27]} exf5 {[%emt 0:00:46]} 20. Bd3 {[%emt 0:00:33]} Nh7 {[%emt 0:00:52]} 21. Bxd8 {[%emt 0:06:50]} Qxd8 {[%emt 0:00:01]} 22. Bxf5 {[%emt 0:09:25]} Nb6 {[%emt 0:04:14]} 23. Bxc8 {[%emt 0:04:26]} Rxc8 {[%emt 0:03:30]} 24. Ne5 {[%emt 0:00:30]} Rf6 {[%emt 0:01:01]} 25. cxd5 {[%emt 0:06:20]} cxd5 {[%emt 0:01:10]} 26. Rg4 {[%emt 0:01:09]} Nf8 {[%emt 0:03:42]} 27. Rdg1 {[%emt 0:12:34]} Rc7 {[%emt 0:00:53]} 28. Kb1 {[%emt 0:00:52]} Rh6 {[%emt 0:05:11]} 29. Nb5 {[%emt 0:06:46]} Re7 {[%emt 0:01:58]} 30. Nxa7 {[%emt 0:00:33]} Qe8 {[%emt 0:00:49]} 31. Qb3 {[%emt 0:06:30]} Nfd7 {[%emt 0:03:36]} 32. f4 {[%emt 0:03:39]} Nxe5 {[%emt 0:04:18]} 33. fxe5 {[%emt 0:00:01]} Nc4 {[%emt 0:00:01]} 34. Qg3 {[%emt 0:01:28]} Qd7 {[%emt 0:00:16]} 35. Nb5 {[%emt 0:04:32]} Kh8 {[%emt 0:02:11]} 36. Nc3 {[%emt 0:01:51]} Rb6 {[%emt 0:01:26]} 37. Qd3 {[%emt 0:02:54]} Rxb2+ {[%emt 0:05:22]} 38. Ka1 {[%emt 0:00:01]} Rf7 {[%emt 0:00:01]} 39. Rh4+ {[%emt 0:04:04]} Kg8 {[%emt 0:00:01]} 40. Qh7+ {[%emt 0:00:23]} Kf8 {[%emt 0:00:01]} 41. Qh8+ {[%emt 0:00:21]} Ke7 {[%emt 0:00:02]} 42. Rxg7 {[%emt 0:00:12]} Rbf2 {[%emt 0:00:08]} 43. Rxf7+ {[%emt 0:00:48]} Rxf7 {[%emt 0:00:02]} 44. Rh7 {[%emt 0:00:10]} Qe6 {[%emt 0:01:44]} 45. Nxd5+ {[%emt 0:00:46]} Kd7 {[%emt 0:00:16]} 46. Nf4 {[%emt 0:01:44]} Kc6 {[%emt 0:00:11]} 47. Rh6 {[%emt 0:00:43]} 1-0

[Event "EYCC O18-ch 2024"]
[Site "Prague"]
[Date "2024.08.25"]
[Round "4.11"]
[White "Valiyev, Shahin"]
[Black "Borrmann, Laurenz"]
[Result "1-0"]
[ECO "C78"]
[WhiteElo "2245"]
[BlackElo "2427"]
[Annotator "ChessBase"]
[PlyCount "51"]
[EventDate "2024.08.19"]
[EventType "swiss"]
[EventCountry "CZE"]
[SourceTitle "playchess.com"]
[Source "ChessBase"]
[SourceQuality "1"]
[TimeControl "5400+30"]

1. e4 {[%emt 0:00:07]} e5 {[%emt 0:00:11]} 2. Nf3 {[%emt 0:00:07]} Nc6 {[%emt 0:00:07]} 3. Bb5 {[%emt 0:00:08]} a6 {[%emt 0:00:24]} 4. Ba4 {[%emt 0:00:16]} Nf6 {[%emt 0:00:15]} 5. O-O {[%emt 0:00:24]} b5 {[%emt 0:00:25]} 6. Bb3 {[%emt 0:00:12]} Bc5 {[%emt 0:00:09]} 7. c3 {[%emt 0:03:46]} d6 {[%emt 0:00:13]} 8. d4 {[%emt 0:00:08]} Bb6 {[%emt 0:00:17]} 9. a4 {[%emt 0:01:38]} Bb7 {[%emt 0:00:16]} 10. Re1 {[%emt 0:03:39]} Ne7 {[%emt 0:00:53]} 11. Qd3 {[%emt 0:22:12]} O-O {[%emt 0:06:19]} 12. Bg5 {[%emt 0:04:40]} Ng6 {[%emt 0:11:56]} 13. Nh4 {[%emt 0:01:02]} d5 {[%emt 0:39:37]} 14. exd5 {[%emt 0:28:10]} Bxd5 {[%emt 0:00:13]} 15. Bxd5 {[%emt 0:04:52]} Qxd5 {[%emt 0:00:14]} 16. Nxg6 {[%emt 0:04:28]} fxg6 {[%emt 0:00:10]} 17. Rxe5 {[%emt 0:00:24]} Qb3 {[%emt 0:00:07]} 18. Nd2 {[%emt 0:01:39]} Qxb2 {[%emt 0:00:50]} 19. Rb1 {[%emt 0:00:50]} Qa2 {[%emt 0:02:13]} 20. axb5 {[%emt 0:01:23]} Ng4 {[%emt 0:00:34]} 21. Re2 {[%emt 0:02:36]} axb5 {[%emt 0:00:04]} 22. h3 {[%emt 0:02:53]} Rf5 {[%emt 0:07:12]} 23. hxg4 {[%emt 0:00:32]} Rxg5 {[%emt 0:00:19]} 24. Nf3 {[%emt 0:00:31]} Qd5 {[%emt 0:00:19]} 25. Nxg5 {[%emt 0:00:06]} Qxg5 {[%emt 0:00:07]} 26. Qxb5 {[%emt 0:00:18]} 1-0

[Event "EYCC O18-ch 2024"]
[Site "Prague"]
[Date "2024.08.25"]
[Round "4.12"]
[White "Asllani, Dorian"]
[Black "Baranciuc, Alexandr"]
[Result "0-1"]
[ECO "D37"]
[WhiteElo "2061"]
[BlackElo "2332"]
[Annotator "ChessBase"]
[PlyCount "96"]
[EventDate "2024.08.19"]
[EventType "swiss"]
[EventCountry "CZE"]
[SourceTitle "playchess.com"]
[Source "ChessBase"]
[SourceQuality "1"]
[TimeControl "5400+30"]

1. d4 {[%emt 0:00:10]} d5 {[%emt 0:00:05]} 2. c4 {[%emt 0:00:30]} e6 {[%emt 0:00:04]} 3. Nc3 {[%emt 0:00:44]} Nf6 {[%emt 0:00:05]} 4. Nf3 {[%emt 0:00:51]} Nbd7 {[%emt 0:00:04]} 5. e3 {[%emt 0:01:21]} a6 {[%emt 0:00:06]} 6. b3 {[%emt 0:02:05]} b6 {[%emt 0:00:06]} 7. Bd3 {[%emt 0:03:44]} Bb7 {[%emt 0:00:06]} 8. O-O {[%emt 0:01:48]} Bd6 {[%emt 0:00:07]} 9. Bb2 {[%emt 0:03:56]} O-O {[%emt 0:00:06]} 10. Qe2 {[%emt 0:03:19]} dxc4 {[%emt 0:02:15]} 11. bxc4 {[%emt 0:03:40]} c5 {[%emt 0:01:31]} 12. Rfd1 {[%emt 0:04:05]} cxd4 {[%emt 0:00:34]} 13. exd4 {[%emt 0:01:10]} Qc7 {[%emt 0:01:30]} 14. h3 {[%emt 0:01:07]} Rfe8 {[%emt 0:11:17]} 15. Ng5 {[%emt 0:38:49]} Bf8 {[%emt 0:14:03]} 16. Qc2 {[%emt 0:10:39]} g6 {[%emt 0:00:06]} 17. Nge4 {[%emt 0:04:01]} Bg7 {[%emt 0:01:16]} 18. Ba3 {[%emt 0:02:02]} Nxe4 {[%emt 0:00:18]} 19. Bxe4 {[%emt 0:00:21]} Nf6 {[%emt 0:06:53]} 20. Bxb7 {[%emt 0:00:09]} Qxb7 {[%emt 0:00:01]} 21. Rab1 {[%emt 0:00:22]} Qc6 {[%emt 0:01:37]} 22. Qb3 {[%emt 0:02:28]} Rec8 {[%emt 0:01:48]} 23. c5 {[%emt 0:02:33]} bxc5 {[%emt 0:11:20]} 24. dxc5 {[%emt 0:00:16]} Bf8 {[%emt 0:00:44]} 25. Rdc1 {[%emt 0:02:57]} Nd7 {[%emt 0:01:56]} 26. Na4 {[%emt 0:00:25]} Rab8 {[%emt 0:01:55]} 27. Qc2 {[%emt 0:04:49]} Rb5 {[%emt 0:01:26]} 28. Rxb5 {[%emt 0:00:31]} axb5 {[%emt 0:00:11]} 29. Nb2 {[%emt 0:00:16]} Qa6 {[%emt 0:03:17]} 30. Qb3 {[%emt 0:01:51]} Bxc5 {[%emt 0:03:43]} 31. Bxc5 {[%emt 0:01:52]} Rxc5 {[%emt 0:00:18]} 32. Rd1 {[%emt 0:02:09]} Qc6 {[%emt 0:00:41]} 33. Nd3 {[%emt 0:00:12]} Rd5 {[%emt 0:13:17]} 34. Rc1 {[%emt 0:00:45]} Qd6 {[%emt 0:00:23]} 35. Nb4 {[%emt 0:00:43]} Rd2 {[%emt 0:01:39]} 36. a3 {[%emt 0:01:17]} Qd4 {[%emt 0:01:40]} 37. Qf3 {[%emt 0:00:31]} Kg7 {[%emt 0:02:12]} 38. Rc7 {[%emt 0:00:29]} Ne5 {[%emt 0:00:27]} 39. Qg3 {[%emt 0:00:28]} h5 {[%emt 0:01:38]} 40. Rb7 {[%emt 0:00:33]} h4 {[%emt 0:00:50]} 41. Qe3 {[%emt 0:00:21]} Qd6 {[%emt 0:00:31]} 42. Qc3 {[%emt 0:00:33]} Rd1+ {[%emt 0:00:37]} 43. Kh2 {[%emt 0:00:01]} Kh7 {[%emt 0:00:46]} 44. g3 {[%emt 0:01:04]} hxg3+ {[%emt 0:00:19]} 45. Qxg3 {[%emt 0:00:01]} Nf3+ {[%emt 0:00:51]} 46. Kg2 {[%emt 0:00:01]} Rg1+ {[%emt 0:00:00]} 47. Kxf3 {[%emt 0:00:02]} Rxg3+ {[%emt 0:00:17]} 48. fxg3 Qd1+ 0-1

[Event "EYCC O18-ch 2024"]
[Site "Prague"]
[Date "2024.08.25"]
[Round "4.13"]
[White "Elmi, Saad Abobaker"]
[Black "Fishchuk, Vladyslav"]
[Result "1/2-1/2"]
[ECO "A06"]
[WhiteElo "2383"]
[BlackElo "2264"]
[Annotator "ChessBase"]
[PlyCount "42"]
[EventDate "2024.08.19"]
[EventType "swiss"]
[EventCountry "CZE"]
[SourceTitle "playchess.com"]
[Source "ChessBase"]
[SourceQuality "1"]
[TimeControl "5400+30"]

1. Nf3 d5 {[%emt 0:00:06]} 2. e3 {[%emt 0:00:14]} Nf6 {[%emt 0:00:12]} 3. c4 {[%emt 0:00:10]} e6 {[%emt 0:00:06]} 4. Nc3 {[%emt 0:00:22]} Bd6 {[%emt 0:00:13]} 5. b3 {[%emt 0:00:32]} O-O {[%emt 0:00:13]} 6. Bb2 {[%emt 0:00:22]} Re8 {[%emt 0:00:14]} 7. d4 {[%emt 0:01:07]} b6 {[%emt 0:00:59]} 8. cxd5 {[%emt 0:00:22]} exd5 {[%emt 0:00:23]} 9. Rc1 {[%emt 0:00:46]} a6 {[%emt 0:01:17]} 10. Bd3 {[%emt 0:00:25]} Bb7 {[%emt 0:00:37]} 11. O-O {[%emt 0:00:43]} Nbd7 {[%emt 0:01:02]} 12. Ne2 Ne4 13. Ng3 {[%emt 0:09:24]} Nxg3 {[%emt 0:15:25]} 14. hxg3 {[%emt 0:00:16]} Nf6 {[%emt 0:04:22]} 15. Qe2 {[%emt 0:18:08]} Ne4 16. Rfd1 Re6 {[%emt 0:05:34]} 17. Ne5 {[%emt 0:07:17]} Qg5 {[%emt 0:02:35]} 18. Nf3 {[%emt 0:04:38]} Qh5 {[%emt 0:02:45]} 19. Ne5 {[%emt 0:00:17]} Qg5 {[%emt 0:00:17]} 20. Nf3 {[%emt 0:00:22]} Qh5 {[%emt 0:00:15]} 21. Ne5 {[%emt 0:00:16]} Qg5 {[%emt 0:00:08]} 1/2-1/2

[Event "EYCC O18-ch 2024"]
[Site "Prague"]
[Date "2024.08.25"]
[Round "4.13"]
[White "Thorisson, Benedikt"]
[Black "Paseka, Matyas"]
[Result "0-1"]
[ECO "B56"]
[WhiteElo "2057"]
[BlackElo "2281"]
[Annotator "ChessBase"]
[PlyCount "48"]
[EventDate "2024.08.19"]
[EventType "swiss"]
[EventCountry "CZE"]
[SourceTitle "playchess.com"]
[Source "ChessBase"]
[SourceQuality "1"]
[TimeControl "5400+30"]

1. e4 {[%emt 0:00:17]} c5 {[%emt 0:00:08]} 2. Nf3 {[%emt 0:00:07]} d6 {[%emt 0:00:07]} 3. d4 {[%emt 0:00:04]} cxd4 {[%emt 0:00:04]} 4. Nxd4 {[%emt 0:00:06]} Nf6 {[%emt 0:00:08]} 5. Nc3 {[%emt 0:00:07]} Nc6 {[%emt 0:00:06]} 6. Be3 {[%emt 0:00:50]} Ng4 {[%emt 0:01:07]} 7. Bc1 {[%emt 0:03:40]} Qb6 {[%emt 0:00:18]} 8. Bb5 {[%emt 0:04:49]} e5 {[%emt 0:00:08]} 9. Nd5 {[%emt 0:00:32]} Qxd4 {[%emt 0:00:58]} 10. Qxd4 {[%emt 0:00:58]} exd4 {[%emt 0:00:05]} 11. Nc7+ {[%emt 0:00:09]} Kd8 {[%emt 0:01:15]} 12. Nxa8 {[%emt 0:00:13]} Bd7 {[%emt 0:18:42]} 13. Bd2 {[%emt 0:15:18]} Kc8 {[%emt 0:01:09]} 14. Bxc6 {[%emt 0:06:56]} Bxc6 {[%emt 0:00:07]} 15. Ba5 {[%emt 0:01:15]} Ne5 {[%emt 0:03:43]} 16. Nb6+ {[%emt 0:05:00]} axb6 {[%emt 0:00:18]} 17. Bxb6 {[%emt 0:00:35]} Bxe4 {[%emt 0:13:02]} 18. f3 {[%emt 0:00:48]} Bxc2 {[%emt 0:00:25]} 19. Bxd4 {[%emt 0:00:37]} Nc6 {[%emt 0:00:44]} 20. Bc3 {[%emt 0:00:49]} f6 {[%emt 0:08:03]} 21. b4 {[%emt 0:01:06]} Ba4 {[%emt 0:00:25]} 22. Kf2 {[%emt 0:00:38]} d5 {[%emt 0:03:05]} 23. Rac1 {[%emt 0:00:21]} Bd6 {[%emt 0:01:12]} 24. Rhe1 {[%emt 0:01:03]} Bf4 {[%emt 0:02:20]} 0-1

[Event "EYCC O18-ch 2024"]
[Site "Prague"]
[Date "2024.08.25"]
[Round "4.14"]
[White "Bokhnak, Timofey"]
[Black "Michaeli, Omri"]
[Result "1/2-1/2"]
[ECO "C25"]
[WhiteElo "2273"]
[BlackElo "1983"]
[Annotator "ChessBase"]
[PlyCount "141"]
[EventDate "2024.08.19"]
[EventType "swiss"]
[EventCountry "CZE"]
[SourceTitle "playchess.com"]
[Source "ChessBase"]
[SourceQuality "1"]
[TimeControl "5400+30"]

1. e4 {[%emt 0:00:03]} e5 {[%emt 0:00:05]} 2. Nc3 {[%emt 0:00:05]} Nc6 {[%emt 0:00:18]} 3. g3 {[%emt 0:00:18]} Bc5 {[%emt 0:01:08]} 4. Bg2 {[%emt 0:00:30]} a6 {[%emt 0:00:26]} 5. Nge2 {[%emt 0:00:34]} d6 {[%emt 0:00:17]} 6. O-O {[%emt 0:01:38]} Nge7 {[%emt 0:01:40]} 7. d3 {[%emt 0:00:44]} O-O {[%emt 0:00:29]} 8. Kh1 {[%emt 0:07:40]} Nd4 {[%emt 0:19:58]} 9. Nxd4 {[%emt 0:07:44]} Bxd4 {[%emt 0:00:31]} 10. f4 {[%emt 0:00:36]} exf4 {[%emt 0:10:58]} 11. gxf4 {[%emt 0:06:06]} f5 {[%emt 0:01:29]} 12. Ne2 {[%emt 0:00:33]} Bf6 {[%emt 0:06:27]} 13. Ng3 {[%emt 0:01:20]} g6 {[%emt 0:02:24]} 14. c3 {[%emt 0:01:21]} c6 {[%emt 0:02:32]} 15. Qb3+ {[%emt 0:03:16]} Kh8 {[%emt 0:00:18]} 16. Be3 {[%emt 0:00:04]} Qe8 {[%emt 0:09:05]} 17. Rae1 {[%emt 0:02:34]} Qf7 {[%emt 0:02:15]} 18. Qa3 {[%emt 0:01:19]} d5 {[%emt 0:00:37]} 19. e5 {[%emt 0:08:02]} Bg7 {[%emt 0:01:00]} 20. Bc5 {[%emt 0:00:56]} Re8 {[%emt 0:00:53]} 21. Ne2 {[%emt 0:01:15]} Be6 {[%emt 0:00:35]} 22. Nd4 {[%emt 0:00:35]} Rad8 {[%emt 0:04:03]} 23. Nf3 {[%emt 0:04:18]} Nc8 {[%emt 0:01:03]} 24. Qb4 {[%emt 0:01:52]} Qc7 {[%emt 0:01:24]} 25. Ng5 {[%emt 0:01:35]} b6 {[%emt 0:01:45]} 26. Nxe6 {[%emt 0:01:38]} Rxe6 {[%emt 0:00:32]} 27. Bf2 {[%emt 0:00:19]} a5 {[%emt 0:00:58]} 28. Qb3 {[%emt 0:00:13]} Ree8 {[%emt 0:06:40]} 29. a4 {[%emt 0:02:48]} Bf8 {[%emt 0:00:39]} 30. Rd1 {[%emt 0:01:52]} Rd7 {[%emt 0:01:01]} 31. Rfe1 {[%emt 0:00:53]} Rdd8 {[%emt 0:01:18]} 32. Rc1 {[%emt 0:03:45]} Qd7 {[%emt 0:04:39]} 33. Red1 {[%emt 0:00:20]} c5 {[%emt 0:01:39]} 34. Qa2 {[%emt 0:06:16]} Bh6 {[%emt 0:00:30]} 35. Bh4 {[%emt 0:03:48]} Bxf4 {[%emt 0:01:50]} 36. Bxd8 {[%emt 0:00:09]} Qxd8 {[%emt 0:01:00]} 37. Rc2 {[%emt 0:00:14]} Rxe5 {[%emt 0:00:54]} 38. b4 {[%emt 0:10:21]} Qh4 {[%emt 0:04:44]} 39. Bxd5 {[%emt 0:00:13]} Re1+ {[%emt 0:00:36]} 40. Rxe1 {[%emt 0:00:04]} Qxe1+ {[%emt 0:00:06]} 41. Kg2 {[%emt 0:00:03]} Qh4 {[%emt 0:00:50]} 42. Kf1 {[%emt 0:00:54]} Qh3+ {[%emt 0:00:23]} 43. Bg2 {[%emt 0:00:31]} Qxd3+ {[%emt 0:00:32]} 44. Re2 {[%emt 0:00:07]} Nd6 {[%emt 0:05:16]} 45. Qd5 {[%emt 0:02:47]} Qxd5 {[%emt 0:01:47]} 46. Bxd5 {[%emt 0:00:03]} cxb4 {[%emt 0:00:15]} 47. cxb4 {[%emt 0:00:02]} axb4 {[%emt 0:00:04]} 48. h3 {[%emt 0:00:57]} Kg7 {[%emt 0:01:07]} 49. Rb2 {[%emt 0:00:33]} Be3 {[%emt 0:00:12]} 50. Rxb4 {[%emt 0:00:06]} Kf6 {[%emt 0:00:27]} 51. Rb3 {[%emt 0:01:38]} Bc5 {[%emt 0:00:14]} 52. Ke2 {[%emt 0:01:53]} Ke5 {[%emt 0:00:34]} 53. Rd3 {[%emt 0:01:54]} h6 {[%emt 0:01:22]} 54. Bc6 {[%emt 0:00:59]} Kf4 {[%emt 0:00:44]} 55. Rf3+ {[%emt 0:04:14]} Ke5 {[%emt 0:00:04]} 56. Rc3 {[%emt 0:01:29]} Bd4 {[%emt 0:00:19]} 57. Rg3 {[%emt 0:02:59]} g5 {[%emt 0:00:17]} 58. Kd3 {[%emt 0:00:06]} Bc5 {[%emt 0:00:41]} 59. Rg2 {[%emt 0:03:10]} Kf4 {[%emt 0:00:24]} 60. Rc2 {[%emt 0:00:06]} Be3 {[%emt 0:01:36]} 61. Bd5 {[%emt 0:02:35]} h5 {[%emt 0:01:23]} 62. Rc6 {[%emt 0:00:07]} Nb7 {[%emt 0:00:22]} 63. Rc4+ {[%emt 0:00:15]} Ke5 {[%emt 0:00:32]} 64. Bxb7 {[%emt 0:00:04]} f4 {[%emt 0:00:06]} 65. Bf3 {[%emt 0:00:17]} g4 {[%emt 0:00:28]} 66. hxg4 {[%emt 0:00:04]} h4 {[%emt 0:00:07]} 67. Rc6 {[%emt 0:00:19]} Bf2 {[%emt 0:00:31]} 68. Rh6 {[%emt 0:00:09]} h3 {[%emt 0:00:55]} 69. Rxh3 {[%emt 0:00:05]} b5 {[%emt 0:00:16]} 70. axb5 {[%emt 0:00:05]} Bh4 {[%emt 0:00:02]} 71. Rxh4 {[%emt 0:00:50]} 1/2-1/2

[Event "EYCC O18-ch 2024"]
[Site "Prague"]
[Date "2024.08.25"]
[Round "4.14"]
[White "Loftgaard, Mikkel Vinh"]
[Black "Karolczuk, Iwo"]
[Result "1/2-1/2"]
[ECO "B52"]
[WhiteElo "2227"]
[BlackElo "2356"]
[Annotator "ChessBase"]
[PlyCount "103"]
[EventDate "2024.08.19"]
[EventType "swiss"]
[EventCountry "CZE"]
[SourceTitle "playchess.com"]
[Source "ChessBase"]
[SourceQuality "1"]
[TimeControl "5400+30"]

1. e4 {[%emt 0:00:01]} c5 {[%emt 0:02:22]} 2. Nf3 {[%emt 0:00:23]} d6 {[%emt 0:00:33]} 3. Bb5+ {[%emt 0:00:09]} Bd7 {[%emt 0:00:41]} 4. Bxd7+ {[%emt 0:00:03]} Nxd7 {[%emt 0:00:12]} 5. O-O {[%emt 0:00:21]} Ngf6 {[%emt 0:00:09]} 6. Qe2 {[%emt 0:00:07]} e6 {[%emt 0:01:06]} 7. b3 {[%emt 0:00:12]} g6 {[%emt 0:09:06]} 8. Bb2 {[%emt 0:00:21]} Bg7 {[%emt 0:00:19]} 9. c4 {[%emt 0:03:35]} e5 {[%emt 0:01:03]} 10. Nc3 {[%emt 0:00:30]} O-O {[%emt 0:00:08]} 11. Ne1 {[%emt 0:00:47]} Ne8 {[%emt 0:04:00]} 12. Nd5 {[%emt 0:02:53]} f5 {[%emt 0:01:25]} 13. exf5 {[%emt 0:00:09]} gxf5 {[%emt 0:02:18]} 14. f4 {[%emt 0:00:36]} Nef6 {[%emt 0:07:04]} 15. Ne3 {[%emt 0:03:23]} Ne8 {[%emt 0:08:26]} 16. fxe5 {[%emt 0:04:30]} f4 {[%emt 0:04:28]} 17. Ng4 {[%emt 0:06:48]} h5 {[%emt 0:04:01]} 18. Nf6+ {[%emt 0:01:48]} Nexf6 {[%emt 0:09:05]} 19. exf6 {[%emt 0:00:12]} Bxf6 {[%emt 0:00:11]} 20. Qe6+ {[%emt 0:06:30]} Kg7 {[%emt 0:07:06]} 21. Bc3 {[%emt 0:02:24]} Bxc3 {[%emt 0:02:52]} 22. dxc3 {[%emt 0:00:16]} Ne5 {[%emt 0:00:59]} 23. Qd5 {[%emt 0:03:25]} Qe7 {[%emt 0:02:38]} 24. Nf3 {[%emt 0:01:17]} Rae8 {[%emt 0:00:45]} 25. Rad1 {[%emt 0:06:55]} Rf6 {[%emt 0:03:36]} 26. h3 {[%emt 0:13:07]} b6 {[%emt 0:01:58]} 27. Nd2 {[%emt 0:02:54]} Ref8 {[%emt 0:04:18]} 28. Ne4 {[%emt 0:09:01]} Rg6 {[%emt 0:01:40]} 29. Nxd6 {[%emt 0:03:53]} f3 {[%emt 0:01:21]} 30. Rd2 {[%emt 0:06:31]} fxg2 {[%emt 0:08:26]} 31. Rxg2 {[%emt 0:00:16]} Nf3+ {[%emt 0:02:21]} 32. Rxf3 {[%emt 0:03:49]} Qe1+ {[%emt 0:00:33]} 33. Kh2 {[%emt 0:00:01]} Rxg2+ {[%emt 0:00:14]} 34. Kxg2 {[%emt 0:00:03]} Qe2+ {[%emt 0:00:11]} 35. Kg3 {[%emt 0:00:48]} h4+ {[%emt 0:02:14]} 36. Kxh4 {[%emt 0:01:11]} Qxf3 {[%emt 0:00:14]} 37. Qg5+ {[%emt 0:02:07]} Kh7 {[%emt 0:00:29]} 38. Qe7+ {[%emt 0:00:26]} Kh8 {[%emt 0:01:25]} 39. Qe5+ {[%emt 0:01:39]} Qf6+ {[%emt 0:02:37]} 40. Qxf6+ {[%emt 0:01:24]} Rxf6 {[%emt 0:00:02]} 41. Nb5 {[%emt 0:01:20]} Rf7 {[%emt 0:00:29]} 42. Kg4 {[%emt 0:01:17]} a6 {[%emt 0:01:13]} 43. Nd6 {[%emt 0:00:13]} Rd7 {[%emt 0:00:16]} 44. Ne4 {[%emt 0:01:36]} Kg7 {[%emt 0:00:52]} 45. Kf5 {[%emt 0:00:14]} Kf7 {[%emt 0:01:01]} 46. Ke5 {[%emt 0:01:17]} Ke7 {[%emt 0:01:24]} 47. h4 {[%emt 0:03:56]} Rd1 {[%emt 0:00:42]} 48. h5 {[%emt 0:01:00]} Rh1 {[%emt 0:00:39]} 49. Ng3 {[%emt 0:00:37]} Rh3 {[%emt 0:00:35]} 50. Nf5+ {[%emt 0:00:16]} Kf7 {[%emt 0:00:38]} 51. Nd6+ {[%emt 0:00:59]} Ke7 {[%emt 0:00:32]} 52. Nf5+ {[%emt 0:01:13]} 1/2-1/2

[Event "EYCC O18-ch 2024"]
[Site "Prague"]
[Date "2024.08.25"]
[Round "4.15"]
[White "Gasparyan, Erik R."]
[Black "Kutowski, Marcel"]
[Result "1/2-1/2"]
[ECO "D41"]
[WhiteElo "2350"]
[BlackElo "2263"]
[Annotator "ChessBase"]
[PlyCount "52"]
[EventDate "2024.08.19"]
[EventType "swiss"]
[EventCountry "CZE"]
[SourceTitle "playchess.com"]
[Source "ChessBase"]
[SourceQuality "1"]
[TimeControl "5400+30"]

1. d4 {[%emt 0:00:03]} Nf6 {[%emt 0:00:07]} 2. c4 {[%emt 0:00:08]} e6 {[%emt 0:00:06]} 3. Nf3 {[%emt 0:00:11]} d5 {[%emt 0:00:04]} 4. Nc3 {[%emt 0:00:16]} c5 {[%emt 0:00:17]} 5. cxd5 {[%emt 0:00:54]} cxd4 {[%emt 0:00:08]} 6. Qxd4 {[%emt 0:01:20]} exd5 {[%emt 0:00:05]} 7. Bg5 {[%emt 0:00:10]} Be7 {[%emt 0:00:09]} 8. e3 {[%emt 0:00:46]} O-O {[%emt 0:05:22]} 9. Be2 {[%emt 0:00:41]} Nc6 {[%emt 0:00:31]} 10. Qd3 {[%emt 0:00:31]} Be6 {[%emt 0:04:49]} 11. O-O {[%emt 0:01:07]} h6 {[%emt 0:03:10]} 12. Bh4 {[%emt 0:02:30]} Qb6 {[%emt 0:02:52]} 13. Nb5 {[%emt 0:09:51]} Rac8 {[%emt 0:06:19]} 14. Nbd4 {[%emt 0:09:23]} Bd7 {[%emt 0:12:59]} 15. Rfd1 {[%emt 0:11:24]} Rfd8 {[%emt 0:08:24]} 16. Bf1 {[%emt 0:11:11]} g5 {[%emt 0:05:04]} 17. Bg3 {[%emt 0:02:58]} Ne4 {[%emt 0:00:47]} 18. Qb3 {[%emt 0:10:56]} Qxb3 {[%emt 0:11:20]} 19. axb3 {[%emt 0:03:07]} Nxg3 {[%emt 0:06:04]} 20. hxg3 {[%emt 0:00:23]} Bf6 {[%emt 0:00:45]} 21. Rd2 {[%emt 0:05:11]} g4 {[%emt 0:03:21]} 22. Nxc6 {[%emt 0:02:11]} bxc6 {[%emt 0:00:48]} 23. Nd4 {[%emt 0:00:11]} Rc7 {[%emt 0:05:07]} 24. Ra6 {[%emt 0:03:11]} Rb8 {[%emt 0:00:59]} 25. Be2 {[%emt 0:05:32]} Bg7 {[%emt 0:02:28]} 26. Bd1 {[%emt 0:01:38]} h5 {[%emt 0:09:01]} 1/2-1/2